[Event "Elegant 1st Division League 2024"]
[Site "Dhaka"]
[Date "2024.07.13"]
[Round "3.12"]
[White "Noshin, Anjum"]
[Black "Mohammed, Shaker Ullah"]
[Result "0-1"]
[Annotator "RC"]
[ECO "C70"]
[WhiteElo "2056"]
[BlackElo "2018"]
[PlyCount "142"]
[EventDate "2024.07.10"]
[EventType "team-tourn"]
[EventCountry "BAN"]
[SourceTitle "playchess.com"]
[Source "ChessBase"]
[SourceQuality "1"]
[TimeControl "5400+30"]

1. e4 {[%emt 0:02:33]} e5 {[%emt 0:01:53]} 2. Nf3 {[%emt 0:00:06]} Nc6 {[%emt 0:00:24]} 3. Bb5 {[%emt 0:00:11]} a6 {[%emt 0:00:12]} 4. Ba4 {[%emt 0:00:05]} f5 {[%emt 0:01:43]} 5. d3 {[%emt 0:02:57]} fxe4 {[%emt 0:01:23]} 6. dxe4 {[%emt 0:00:06]} Nf6 {[%emt 0:01:34]} 7. O-O {[%emt 0:04:10]} d6 {[%emt 0:00:23]} 8. Nc3 {[%emt 0:06:46]} Bg4 {[%emt 0:02:52]} 9. h3 {[%emt 0:08:20]} Bh5 {[%emt 0:01:59]} 10. Qd3 {[%emt 0:02:12]} Be7 {[%emt 0:03:13]} 11. Ng5 {[%emt 0:07:29]} Qd7 {[%emt 0:01:44]} 12. Nd5 {[%emt 0:08:55]} b5 {[%emt 0:05:08]} 13. Ne6 {[%emt 0:01:06]} Nxd5 {[%emt 0:26:58]} 14. Nxg7+ {[%emt 0:08:17]} Kd8 {[%emt 0:01:56]} 15. Qxd5 {[%emt 0:06:30]} Be2 {[%emt 0:02:14]} 16. Bb3 {[%emt 0:00:50]} Bxf1 {[%emt 0:01:44]} 17. Kxf1 {[%emt 0:02:42]} Rb8 {[%emt 0:04:14]} 18. Be3 {[%emt 0:24:57]} Na5 {[%emt 0:04:05]} 19. Qd2 {[%emt 0:01:50]} Nc4 {[%emt 0:01:45]} 20. Bxc4 {[%emt 0:02:21]} bxc4 {[%emt 0:00:15]} 21. b3 {[%emt 0:00:40]} Rg8 {[%emt 0:00:26]} 22. Nf5 {[%emt 0:00:32]} Qc6 {[%emt 0:00:23]} 23. f3 {[%emt 0:00:10]} Kd7 {[%emt 0:01:03]} 24. Rd1 {[%emt 0:01:50]} Rg6 {[%emt 0:00:37]} 25. Qd5 {[%emt 0:01:46]} Qxd5 {[%emt 0:00:44]} 26. Rxd5 {[%emt 0:00:05]} cxb3 {[%emt 0:00:12]} 27. axb3 {[%emt 0:01:42]} Bg5 {[%emt 0:01:36]} 28. Bxg5 {[%emt 0:02:41]} Rxg5 {[%emt 0:00:14]} 29. g4 {[%emt 0:00:05]} Rb5 {[%emt 0:01:29]} 30. Rd2 {[%emt 0:02:54]} Ke6 {[%emt 0:00:51]} 31. h4 {[%emt 0:00:31]} Rg8 {[%emt 0:00:17]} 32. Ne3 {[%emt 0:00:31]} c6 {[%emt 0:00:28]} 33. Kf2 {[%emt 0:00:36]} d5 {[%emt 0:01:41]} 34. exd5+ {[%emt 0:00:22]} cxd5 {[%emt 0:00:25]} 35. c4 {[%emt 0:00:08]} dxc4 {[%emt 0:00:58]} 36. bxc4 {[%emt 0:00:05]} Rc5 {[%emt 0:00:36]} 37. Rb2 {[%emt 0:00:51]} Rgc8 {[%emt 0:04:03]} 38. Rb7 {[%emt 0:00:35]} R8c7 {[%emt 0:00:42]} 39. Rb8 {[%emt 0:00:15]} Rc8 {[%emt 0:00:16]} 40. Rb7 {[%emt 0:00:06]} R5c7 {[%emt 0:00:05]} 41. Rb6+ {[%emt 0:00:13]} Rc6 {[%emt 0:00:29]} 42. Rb7 {[%emt 0:00:08]} R8c7 {[%emt 0:00:01]} 43. Rb8 {[%emt 0:00:15]} Ra7 {[%emt 0:04:20]} 44. Re8+ {[%emt 0:00:56]} Kd6 {[%emt 0:02:41]} 45. Nf5+ {[%emt 0:00:55]} Kc5 {[%emt 0:00:25]} 46. Ne3 {[%emt 0:01:07]} Kd4 {[%emt 0:00:45]} 47. Rd8+ {[%emt 0:00:15]} Kc3 {[%emt 0:00:23]} 48. Ke2 {[%emt 0:01:04]} a5 {[%emt 0:01:01]} 49. Rd3+ {[%emt 0:00:41]} Kb4 {[%emt 0:00:16]} 50. Rd5 {[%emt 0:00:27]} Rc5 {[%emt 0:01:17]} 51. Rd6 {[%emt 0:00:40]} a4 {[%emt 0:01:45]} 52. Kd3 {[%emt 0:00:26]} Rb7 {[%emt 0:01:09]} 53. Ra6 {[%emt 0:00:26]} Kb3 {[%emt 0:00:40]} 54. g5 {[%emt 0:00:33]} a3 {[%emt 0:00:25]} 55. h5 {[%emt 0:00:21]} e4+ {[%emt 0:00:39]} 56. fxe4 {[%emt 0:00:25]} Rxg5 {[%emt 0:00:15]} 57. Nf5 {[%emt 0:00:45]} a2 {[%emt 0:00:49]} 58. c5 {[%emt 0:00:17]} Rxh5 {[%emt 0:02:17]} 59. c6 {[%emt 0:00:07]} Rh3+ {[%emt 0:00:16]} 60. Kd4 {[%emt 0:01:03]} Rb4+ {[%emt 0:00:25]} 61. Ke5 {[%emt 0:00:29]} Rc3 {[%emt 0:00:59]} 62. Kd6 {[%emt 0:00:38]} Kb2 {[%emt 0:01:03]} 63. e5 {[%emt 0:00:22]} Ra3 {[%emt 0:00:45]} 64. Rxa3 {[%emt 0:00:24]} Kxa3 {[%emt 0:00:18]} 65. Ne3 {[%emt 0:00:09]} Rb8 {[%emt 0:03:58]} 66. c7 {[%emt 0:00:26]} Rh8 {[%emt 0:00:33]} 67. Kd7 {[%emt 0:01:00]} Kb3 {[%emt 0:00:11]} 68. c8=Q {[%emt 0:01:10]} Rxc8 {[%emt 0:00:04]} 69. Kxc8 {[%emt 0:00:00]} a1=Q {[%emt 0:00:31]} 70. e6 {[%emt 0:00:00]} Qa8+ {[%emt 0:00:17]} 71. Kd7 {[%emt 0:00:00]} Qa7+ {[%emt 0:00:01]} 0-1

[Event "Elegant 1st Division League 2024"]
[Site "Dhaka"]
[Date "2024.07.13"]
[Round "3.13"]
[White "Md, Eftekhar Alam"]
[Black "Choudhury, Zahid"]
[Result "1-0"]
[Annotator "RC"]
[ECO "D40"]
[WhiteElo "2006"]
[BlackElo "1838"]
[PlyCount "71"]
[EventDate "2024.07.10"]
[EventType "team-tourn"]
[EventCountry "BAN"]
[SourceTitle "playchess.com"]
[Source "ChessBase"]
[SourceQuality "1"]
[TimeControl "5400+30"]

1. d4 {[%emt 0:00:03]} d5 {[%emt 0:25:46]} 2. c4 {[%emt 0:00:56]} e6 {[%emt 0:00:02]} 3. Nc3 {[%emt 0:00:56]} Nf6 {[%emt 0:00:09]} 4. Nf3 {[%emt 0:00:29]} Be7 {[%emt 0:00:02]} 5. e3 {[%emt 0:01:21]} O-O {[%emt 0:00:08]} 6. Bd3 {[%emt 0:00:59]} dxc4 {[%emt 0:00:40]} 7. Bxc4 {[%emt 0:00:24]} c5 {[%emt 0:00:11]} 8. O-O {[%emt 0:02:49]} Nc6 {[%emt 0:07:49]} 9. b3 {[%emt 0:04:08]} cxd4 {[%emt 0:01:18]} 10. exd4 {[%emt 0:00:18]} Nb4 {[%emt 0:03:39]} 11. Bb2 {[%emt 0:02:35]} b6 {[%emt 0:01:45]} 12. Ne5 {[%emt 0:08:11]} Bb7 {[%emt 0:55:01]} 13. Ne2 {[%emt 0:01:11]} Rc8 {[%emt 0:00:00]} 14. Ng3 {[%emt 0:02:22]} Nbd5 {[%emt 0:00:00]} 15. Qd2 {[%emt 0:03:36]} Bb4 {[%emt 0:00:00]} 16. Qg5 {[%emt 0:00:43]} h6 {[%emt 0:00:00]} 17. Qh4 {[%emt 0:01:34]} Be7 {[%emt 0:00:00]} 18. Ne4 {[%emt 0:05:28]} Rc7 {[%emt 0:00:00]} 19. Nxf6+ {[%emt 0:02:20]} Nxf6 {[%emt 0:00:00]} 20. Rad1 {[%emt 0:04:40]} Qa8 {[%emt 0:00:00]} 21. f3 {[%emt 0:03:01]} Ne4 {[%emt 0:00:00]} 22. Qe1 {[%emt 0:00:30]} Nf6 {[%emt 0:00:00]} 23. Bd3 {[%emt 0:01:16]} Rd8 {[%emt 0:00:00]} 24. Kh1 {[%emt 0:03:17]} Bd5 {[%emt 0:00:00]} 25. Bc1 {[%emt 0:00:42]} Bb7 {[%emt 0:00:00]} 26. Bb1 {[%emt 0:00:29]} a5 {[%emt 0:00:00]} 27. Qg3 {[%emt 0:13:28]} Nh5 {[%emt 0:00:00]} 28. Qh3 {[%emt 0:02:10]} Nf6 {[%emt 0:00:00]} 29. Bxh6 {[%emt 0:03:28]} gxh6 {[%emt 0:00:00]} 30. Qg3+ {[%emt 0:00:16]} Kf8 {[%emt 0:00:00]} 31. Ng6+ {[%emt 0:01:17]} fxg6 {[%emt 0:00:00]} 32. Qxc7 {[%emt 0:00:28]} Nd5 {[%emt 0:10:00]} 33. Qe5 {[%emt 0:01:04]} Kf7 {[%emt 0:00:00]} 34. Rde1 {[%emt 0:02:16]} Bc8 {[%emt 0:00:00]} 35. Qg3 {[%emt 0:02:02]} Rg8 {[%emt 0:00:00]} 36. Be4 {[%emt 0:00:32]} 1-0

[Event "Elegant 1st Division League 2024"]
[Site "Dhaka"]
[Date "2024.07.13"]
[Round "3.14"]
[White "Mirza Arifur, Rahman"]
[Black "Mahindrakar Indrajeet"]
[Result "0-1"]
[Annotator "RC"]
[ECO "B28"]
[WhiteElo "1823"]
[BlackElo "2129"]
[PlyCount "124"]
[EventDate "2024.07.10"]
[EventType "team-tourn"]
[EventCountry "BAN"]
[SourceTitle "playchess.com"]
[Source "ChessBase"]
[SourceQuality "1"]
[TimeControl "5400+30"]

1. e4 {[%emt 0:00:05]} c5 {[%emt 0:03:04]} 2. Nf3 {[%emt 0:01:03]} a6 {[%emt 0:02:50]} 3. c3 {[%emt 0:02:13]} e6 {[%emt 0:04:58]} 4. d4 {[%emt 0:00:39]} d5 {[%emt 0:00:48]} 5. e5 {[%emt 0:00:29]} Nc6 {[%emt 0:00:14]} 6. Bd3 {[%emt 0:00:20]} Bd7 {[%emt 0:00:32]} 7. a3 {[%emt 0:01:45]} c4 {[%emt 0:05:33]} 8. Bc2 {[%emt 0:01:20]} Na5 {[%emt 0:00:33]} 9. Nbd2 {[%emt 0:01:29]} Bc6 {[%emt 0:00:25]} 10. h3 {[%emt 0:07:17]} Qd7 {[%emt 0:01:35]} 11. a4 {[%emt 0:03:09]} Ne7 {[%emt 0:02:49]} 12. b4 {[%emt 0:08:20]} cxb3 {[%emt 0:00:55]} 13. Nxb3 {[%emt 0:00:31]} Nxb3 {[%emt 0:05:37]} 14. Bxb3 {[%emt 0:00:22]} Nc8 {[%emt 0:01:52]} 15. O-O {[%emt 0:04:07]} Be7 {[%emt 0:01:52]} 16. Re1 {[%emt 0:01:06]} Nb6 {[%emt 0:05:17]} 17. Nd2 {[%emt 0:16:08]} a5 {[%emt 0:34:20]} 18. f4 {[%emt 0:02:21]} g6 {[%emt 0:01:36]} 19. Ra2 {[%emt 0:10:17]} Qc7 {[%emt 0:08:38]} 20. Re3 {[%emt 0:07:38]} Bd7 {[%emt 0:02:01]} 21. Ba3 {[%emt 0:04:04]} Bxa3 {[%emt 0:02:11]} 22. Rxa3 {[%emt 0:00:37]} Bc6 {[%emt 0:03:41]} 23. Ra2 {[%emt 0:02:10]} Qd7 {[%emt 0:01:26]} 24. g3 {[%emt 0:00:56]} h6 {[%emt 0:01:47]} 25. Kh2 {[%emt 0:00:19]} Rc8 {[%emt 0:01:30]} 26. g4 {[%emt 0:07:47]} h5 {[%emt 0:01:00]} 27. gxh5 {[%emt 0:01:44]} Rxh5 {[%emt 0:00:13]} 28. Nf3 {[%emt 0:00:15]} Ke7 {[%emt 0:03:08]} 29. Ng5 {[%emt 0:00:07]} Rch8 {[%emt 0:00:37]} 30. Rf3 {[%emt 0:01:25]} Ke8 {[%emt 0:01:10]} 31. Qc2 {[%emt 0:01:17]} Qe7 {[%emt 0:00:33]} 32. Ra1 {[%emt 0:00:59]} Nd7 {[%emt 0:00:32]} 33. Rg1 {[%emt 0:00:51]} Rh4 {[%emt 0:00:47]} 34. Rgg3 {[%emt 0:01:20]} Nb6 {[%emt 0:00:39]} 35. Rg1 {[%emt 0:00:13]} R8h5 {[%emt 0:02:17]} 36. Ra1 {[%emt 0:02:50]} Kf8 {[%emt 0:00:10]} 37. Qe2 {[%emt 0:01:13]} Be8 {[%emt 0:00:18]} 38. Qd2 {[%emt 0:01:00]} Kg7 {[%emt 0:00:12]} 39. Rg3 {[%emt 0:00:13]} Rh8 {[%emt 0:00:44]} 40. Bc2 {[%emt 0:01:02]} Nc4 {[%emt 0:02:06]} 41. Qc1 {[%emt 0:01:06]} R4h6 {[%emt 0:00:00]} 42. Bd3 {[%emt 0:00:57]} Nb6 {[%emt 0:00:00]} 43. Qc2 {[%emt 0:00:28]} Rh4 {[%emt 0:00:00]} 44. Nf3 {[%emt 0:01:31]} R4h6 {[%emt 0:00:54]} 45. f5 {[%emt 0:00:25]} exf5 {[%emt 0:00:04]} 46. Bxf5 {[%emt 0:00:13]} Nc4 {[%emt 0:02:02]} 47. Re1 {[%emt 0:00:32]} Kf8 {[%emt 0:00:00]} 48. Bg4 {[%emt 0:00:56]} b6 {[%emt 0:00:10]} 49. Rg2 {[%emt 0:01:23]} Kg7 {[%emt 0:00:15]} 50. e6 {[%emt 0:00:19]} f6 {[%emt 0:00:43]} 51. Ree2 {[%emt 0:01:31]} Qd6+ {[%emt 0:00:24]} 52. Kg1 {[%emt 0:00:09]} Qf4 {[%emt 0:00:10]} 53. Kf2 {[%emt 0:00:30]} Nd6 {[%emt 0:01:48]} 54. Ke1 {[%emt 0:01:03]} f5 {[%emt 0:00:00]} 55. Ne5 {[%emt 0:02:43]} fxg4 {[%emt 0:00:00]} 56. Rxg4 {[%emt 0:00:11]} Qf5 {[%emt 0:00:00]} 57. Qb3 {[%emt 0:00:39]} Rxh3 {[%emt 0:00:38]} 58. Qxd5 {[%emt 0:01:18]} Qb1+ {[%emt 0:00:38]} 59. Kf2 {[%emt 0:00:14]} Rf8+ {[%emt 0:00:33]} 60. Nf7 {[%emt 0:00:19]} Nxf7 {[%emt 0:00:29]} 61. Rxg6+ {[%emt 0:01:05]} Qxg6 {[%emt 0:00:11]} 62. exf7 {[%emt 0:00:09]} Qg3+ {[%emt 0:00:24]} 0-1

[Event "Elegant 1st Division League 2024"]
[Site "Dhaka"]
[Date "2024.07.13"]
[Round "3.15"]
[White "Majumder Shrayan"]
[Black "Salim Mohammed, Salim Al Amri"]
[Result "1-0"]
[Annotator "RC"]
[ECO "A06"]
[WhiteElo "2083"]
[BlackElo "1928"]
[PlyCount "85"]
[EventDate "2024.07.10"]
[EventType "team-tourn"]
[EventCountry "BAN"]
[SourceTitle "playchess.com"]
[Source "ChessBase"]
[SourceQuality "1"]
[TimeControl "5400+30"]

1. Nf3 {[%emt 1:31:00]} d5 {[%emt 0:22:54]} 2. c4 {[%emt 0:00:00]} e6 {[%emt 0:00:24]} 3. e3 {[%emt 0:00:00]} Nf6 {[%emt 0:00:17]} 4. b3 {[%emt 0:00:00]} c6 {[%emt 0:01:35]} 5. Bb2 {[%emt 0:00:00]} Nbd7 {[%emt 0:00:38]} 6. Qc2 {[%emt 0:00:00]} h6 {[%emt 0:02:44]} 7. Nc3 {[%emt 0:00:00]} Bb4 {[%emt 0:02:35]} 8. Be2 {[%emt 0:00:00]} O-O {[%emt 0:00:25]} 9. d3 {[%emt 0:00:00]} Re8 {[%emt 0:03:28]} 10. a3 {[%emt 0:00:00]} Bd6 {[%emt 0:02:17]} 11. O-O {[%emt 0:00:00]} b6 {[%emt 0:01:14]} 12. cxd5 {[%emt 0:00:00]} exd5 {[%emt 0:01:26]} 13. d4 {[%emt 0:00:00]} Bb7 {[%emt 0:02:13]} 14. Bd3 {[%emt 0:00:00]} Rc8 {[%emt 0:04:15]} 15. b4 {[%emt 0:00:00]} a6 {[%emt 0:05:19]} 16. Ne2 {[%emt 0:00:00]} c5 {[%emt 0:03:10]} 17. dxc5 {[%emt 0:00:00]} bxc5 {[%emt 0:00:58]} 18. bxc5 {[%emt 0:00:00]} Bxc5 {[%emt 0:06:21]} 19. Qd1 {[%emt 0:00:00]} Qe7 {[%emt 0:11:42]} 20. Ng3 {[%emt 0:00:00]} g6 {[%emt 0:07:01]} 21. Rb1 {[%emt 0:00:00]} Rb8 {[%emt 0:02:54]} 22. Qa4 {[%emt 0:00:00]} Bd6 {[%emt 0:04:01]} 23. Qh4 {[%emt 0:00:00]} h5 {[%emt 0:08:04]} 24. Nf5 {[%emt 0:00:00]} Qf8 {[%emt 0:04:02]} 25. Bxf6 {[%emt 0:00:38]} Nxf6 {[%emt 0:00:53]} 26. Qxf6 {[%emt 0:00:12]} gxf5 {[%emt 0:01:31]} 27. Qxf5 {[%emt 0:03:06]} Qg7 {[%emt 0:00:24]} 28. Qxh5 {[%emt 0:03:13]} d4 {[%emt 0:00:58]} 29. exd4 {[%emt 0:01:30]} Bxf3 {[%emt 0:00:43]} 30. Qxf3 {[%emt 0:00:12]} Rxb1 {[%emt 0:00:17]} 31. Rxb1 {[%emt 0:01:11]} Qxd4 {[%emt 0:00:33]} 32. Bxa6 {[%emt 0:01:14]} Qe5 {[%emt 0:00:27]} 33. g3 {[%emt 0:00:23]} Qa5 {[%emt 0:00:34]} 34. Bc4 {[%emt 0:00:30]} Qc7 {[%emt 0:00:35]} 35. Bd5 {[%emt 0:00:31]} Re7 {[%emt 0:00:25]} 36. Kg2 {[%emt 0:00:29]} Qc2 {[%emt 0:00:37]} 37. Rb6 {[%emt 0:01:07]} Qc5 {[%emt 0:00:19]} 38. Rb4 {[%emt 0:00:28]} Be5 {[%emt 0:00:22]} 39. Rc4 {[%emt 0:00:33]} Qb5 {[%emt 0:00:50]} 40. Rc8+ {[%emt 0:00:15]} Kg7 {[%emt 0:00:10]} 41. Qg4+ {[%emt 0:00:21]} Kh6 {[%emt 0:00:53]} 42. Rc6+ {[%emt 0:01:17]} f6 {[%emt 0:00:11]} 43. Be4 {[%emt 0:00:35]} 1-0

[Event "Elegant 1st Division League 2024"]
[Site "Dhaka"]
[Date "2024.07.13"]
[Round "3.16"]
[White "Islam, Obaidul Shahin"]
[Black "Md, Azmaeen Parvez Sayor"]
[Result "1/2-1/2"]
[Annotator "RC"]
[ECO "B34"]
[WhiteElo "1976"]
[BlackElo "1969"]
[PlyCount "92"]
[EventDate "2024.07.10"]
[EventType "team-tourn"]
[EventCountry "BAN"]
[SourceTitle "playchess.com"]
[Source "ChessBase"]
[SourceQuality "1"]
[TimeControl "5400+30"]

1. e4 {[%emt 0:00:04]} c5 {[%emt 0:00:43]} 2. Nf3 {[%emt 0:00:05]} g6 {[%emt 0:00:07]} 3. Nc3 {[%emt 0:02:36]} Nc6 {[%emt 0:00:08]} 4. d4 {[%emt 0:00:33]} cxd4 {[%emt 0:00:08]} 5. Nxd4 {[%emt 0:00:02]} Bg7 {[%emt 0:00:10]} 6. Be3 {[%emt 0:00:42]} Nf6 {[%emt 0:00:16]} 7. Be2 {[%emt 0:00:07]} O-O {[%emt 0:00:21]} 8. Qd2 {[%emt 0:00:01]} d5 {[%emt 0:00:36]} 9. exd5 {[%emt 0:01:04]} Nxd5 {[%emt 0:00:24]} 10. Nxd5 {[%emt 0:04:33]} Nxd4 {[%emt 0:03:03]} 11. Bxd4 {[%emt 0:01:22]} Qxd5 {[%emt 0:00:27]} 12. Bxg7 {[%emt 0:02:24]} Qxd2+ {[%emt 0:01:21]} 13. Kxd2 {[%emt 0:00:06]} Kxg7 {[%emt 0:00:06]} 14. f4 {[%emt 0:01:18]} Be6 {[%emt 0:10:02]} 15. c4 {[%emt 0:02:38]} Rac8 {[%emt 0:02:25]} 16. b3 {[%emt 0:00:43]} f6 {[%emt 0:02:58]} 17. Rhe1 {[%emt 0:00:53]} Rfd8+ {[%emt 0:05:26]} 18. Kc3 {[%emt 0:03:52]} Bd5 {[%emt 0:13:36]} 19. g3 {[%emt 0:01:50]} h5 {[%emt 0:06:50]} 20. Bd3 {[%emt 0:01:51]} Rd7 {[%emt 0:05:53]} 21. Rad1 {[%emt 0:06:22]} Bc6 {[%emt 0:03:03]} 22. Re3 {[%emt 0:06:39]} Rcd8 {[%emt 0:03:18]} 23. Rde1 {[%emt 0:01:02]} Kf7 {[%emt 0:01:11]} 24. h4 {[%emt 0:06:27]} Rc7 {[%emt 0:02:05]} 25. Bc2 {[%emt 0:12:41]} b6 {[%emt 0:02:15]} 26. a3 {[%emt 0:05:56]} f5 {[%emt 0:04:28]} 27. Bd1 {[%emt 0:03:12]} Rd6 {[%emt 0:02:22]} 28. Bf3 {[%emt 0:02:46]} b5 {[%emt 0:01:02]} 29. Be2 {[%emt 0:02:45]} Be4 {[%emt 0:02:25]} 30. Rd1 {[%emt 0:03:18]} bxc4 {[%emt 0:01:31]} 31. Rxd6 {[%emt 0:05:41]} exd6 {[%emt 0:00:51]} 32. bxc4 {[%emt 0:00:08]} Rb7 {[%emt 0:07:00]} 33. Bf3 {[%emt 0:04:03]} Bxf3 {[%emt 0:01:57]} 34. Rxf3 {[%emt 0:00:06]} Ke6 {[%emt 0:00:30]} 35. Re3+ {[%emt 0:02:50]} Kd7 {[%emt 0:00:32]} 36. Kd4 {[%emt 0:02:32]} Rb1 {[%emt 0:00:59]} 37. Rc3 {[%emt 0:01:09]} Kc6 {[%emt 0:01:05]} 38. Re3 {[%emt 0:00:41]} Rd1+ {[%emt 0:01:01]} 39. Kc3 {[%emt 0:00:07]} Ra1 {[%emt 0:01:56]} 40. Kb4 {[%emt 0:03:49]} Rb1+ {[%emt 0:00:38]} 41. Kc3 {[%emt 0:02:13]} Rg1 {[%emt 0:00:42]} 42. Kb4 {[%emt 0:02:55]} Rb1+ {[%emt 0:00:46]} 43. Kc3 {[%emt 0:01:32]} Rc1+ {[%emt 0:00:08]} 44. Kb4 {[%emt 0:00:56]} Rg1 {[%emt 0:00:56]} 45. Re7 {[%emt 0:06:26]} Rxg3 {[%emt 0:15:19]} 46. Rxa7 {[%emt 0:00:30]} Rg4 {[%emt 0:00:30]} 1/2-1/2

[Event "Elegant 1st Division League 2024"]
[Site "Dhaka"]
[Date "2024.07.13"]
[Round "3.18"]
[White "Hossain, Alamgir"]
[Black "Shafiqul, Islam"]
[Result "1-0"]
[Annotator "RC"]
[ECO "B40"]
[WhiteElo "1974"]
[BlackElo "1937"]
[PlyCount "77"]
[EventDate "2024.07.10"]
[EventType "team-tourn"]
[EventCountry "BAN"]
[SourceTitle "playchess.com"]
[Source "ChessBase"]
[SourceQuality "1"]
[TimeControl "5400+30"]

1. e4 {[%emt 0:00:30]} c5 {[%emt 0:03:51]} 2. Nc3 {[%emt 0:00:37]} e6 {[%emt 0:01:06]} 3. Nf3 {[%emt 0:00:33]} Nc6 {[%emt 0:01:31]} 4. Be2 {[%emt 0:00:37]} Qc7 {[%emt 0:04:43]} 5. O-O {[%emt 0:00:27]} Nf6 {[%emt 0:01:32]} 6. Re1 {[%emt 0:04:49]} a6 {[%emt 0:02:29]} 7. a4 {[%emt 0:00:49]} h6 {[%emt 0:02:24]} 8. Bc4 {[%emt 0:02:13]} Be7 {[%emt 0:00:47]} 9. Nd5 {[%emt 0:07:16]} exd5 {[%emt 0:05:24]} 10. exd5 {[%emt 0:01:38]} Na5 {[%emt 0:04:43]} 11. Ba2 {[%emt 0:01:29]} d6 {[%emt 0:00:43]} 12. Qe2 {[%emt 0:00:36]} Bg4 {[%emt 0:05:33]} 13. d4 {[%emt 0:02:05]} Bxf3 {[%emt 0:05:03]} 14. gxf3 {[%emt 0:00:24]} b6 {[%emt 0:00:11]} 15. dxc5 {[%emt 0:01:36]} bxc5 {[%emt 0:00:18]} 16. Bd2 {[%emt 0:00:28]} Nb7 {[%emt 0:06:17]} 17. c3 {[%emt 0:03:35]} Ra7 {[%emt 0:02:13]} 18. b4 {[%emt 0:00:32]} Kd8 {[%emt 0:02:53]} 19. a5 {[%emt 0:05:58]} Re8 {[%emt 0:01:38]} 20. Bc4 {[%emt 0:00:49]} Bf8 {[%emt 0:01:49]} 21. Qd3 {[%emt 0:00:36]} Rxe1+ {[%emt 0:00:50]} 22. Rxe1 {[%emt 0:00:23]} Nd7 {[%emt 0:07:17]} 23. f4 {[%emt 0:01:13]} Nf6 {[%emt 0:01:28]} 24. Bxa6 {[%emt 0:02:05]} Nxd5 {[%emt 0:10:18]} 25. Bb5 {[%emt 0:00:28]} Nf6 {[%emt 0:01:16]} 26. a6 {[%emt 0:06:44]} Kc8 {[%emt 0:03:10]} 27. axb7+ {[%emt 0:00:53]} Kb8 {[%emt 0:08:40]} 28. Ba6 {[%emt 0:02:23]} h5 {[%emt 0:02:56]} 29. b5 {[%emt 0:00:27]} Qd7 {[%emt 0:00:27]} 30. f5 {[%emt 0:00:45]} Qc7 {[%emt 0:03:52]} 31. Bf4 {[%emt 0:00:35]} Qb6 {[%emt 0:00:54]} 32. c4 {[%emt 0:01:28]} Kc7 {[%emt 0:00:24]} 33. Rd1 {[%emt 0:02:44]} Ne8 {[%emt 0:00:07]} 34. Qd5 {[%emt 0:00:57]} Be7 {[%emt 0:00:27]} 35. Qxf7 {[%emt 0:00:32]} Kd8 {[%emt 0:00:28]} 36. Re1 {[%emt 0:00:44]} Rxb7 {[%emt 0:00:03]} 37. Bxb7 {[%emt 0:00:51]} Qxb7 {[%emt 0:00:02]} 38. Bg5 {[%emt 0:00:46]} Nf6 {[%emt 0:00:04]} 39. Qxg7 {[%emt 0:01:28]} 1-0

[Event "Elegant 1st Division League 2024"]
[Site "Dhaka"]
[Date "2024.07.13"]
[Round "3.19"]
[White "Soumyajit Das"]
[Black "Priyanshu Barua"]
[Result "1/2-1/2"]
[Annotator "RC"]
[ECO "B38"]
[WhiteElo "1850"]
[BlackElo "1987"]
[PlyCount "53"]
[EventDate "2024.07.10"]
[EventType "team-tourn"]
[EventCountry "BAN"]
[SourceTitle "playchess.com"]
[Source "ChessBase"]
[SourceQuality "1"]
[TimeControl "5400+30"]

1. e4 {[%emt 0:05:25]} c5 {[%emt 0:01:15]} 2. Nf3 {[%emt 0:00:18]} Nc6 {[%emt 0:00:03]} 3. d4 {[%emt 0:00:05]} cxd4 {[%emt 0:00:06]} 4. Nxd4 {[%emt 0:00:02]} g6 {[%emt 0:00:58]} 5. c4 {[%emt 0:03:11]} Bg7 {[%emt 0:00:07]} 6. Be3 {[%emt 0:00:57]} Qb6 {[%emt 0:00:14]} 7. Nb3 {[%emt 0:02:47]} Qc7 {[%emt 0:00:58]} 8. Qd2 {[%emt 0:07:37]} Nf6 {[%emt 0:05:54]} 9. f3 {[%emt 0:02:52]} a5 {[%emt 0:02:10]} 10. Nc3 {[%emt 0:17:42]} O-O {[%emt 0:05:04]} 11. Nb5 {[%emt 0:09:09]} Qd8 {[%emt 0:00:26]} 12. Qf2 {[%emt 0:04:25]} d6 {[%emt 0:03:05]} 13. Bb6 {[%emt 0:00:54]} Qd7 {[%emt 0:00:09]} 14. Rd1 {[%emt 0:00:26]} Ne5 {[%emt 0:01:47]} 15. Nc7 {[%emt 0:08:29]} Rb8 {[%emt 0:02:48]} 16. c5 {[%emt 0:17:43]} Qa4 {[%emt 0:01:42]} 17. Bb5 {[%emt 0:04:00]} Qb4+ {[%emt 0:00:37]} 18. Qd2 {[%emt 0:00:54]} Be6 {[%emt 0:01:36]} 19. Bxa5 {[%emt 0:06:08]} Qxd2+ {[%emt 0:00:17]} 20. Nxd2 {[%emt 0:00:23]} Nc6 {[%emt 0:03:02]} 21. Nxe6 {[%emt 0:02:29]} fxe6 {[%emt 0:00:23]} 22. Bc7 {[%emt 0:01:21]} Ra8 {[%emt 0:11:44]} 23. Bb6 {[%emt 0:00:14]} Rab8 {[%emt 0:00:10]} 24. Bc7 {[%emt 0:00:09]} Ra8 {[%emt 0:00:03]} 25. Bb6 {[%emt 0:00:04]} Rab8 {[%emt 0:00:03]} 26. Bc7 {[%emt 0:00:05]} Ra8 {[%emt 0:00:02]} 27. Bb6 {[%emt 0:00:05]} 1/2-1/2